Cogmind - Beta 15 @@@ ROGUE MODE // 2025.05.23 @ 17:04:06 Player: Cinder Result: Destroyed by G-47 Trooper with Particle Gun Performance ------------- Evolutions (2) 1000 Regions Visited (4) 800 Robots Destroyed (24) 120 Value Destroyed (726) 726 Prototype IDs (0) 0 Alien Tech Used (0) 0 Bonus (200) 200 TOTAL SCORE: 2846 Bonus ------- Pacifist 200 Cogmind --------- Core Integrity 0/550 Matter 240/300 Energy 16/240 System Corruption 0% Temperature Cool (9) Movement Rolling (100) Location -8/Materials Parts ------- > --- POWER (1) -------- Nuclear Core > --- PROPULSION (4) --- Armored Huge Wheel Armored Huge Wheel > --- UTILITY (4) ------ Large Storage Unit Sensor Array Hacking Suite > --- WEAPON (2) ------- (None) > --- INVENTORY (15) --- Light Treads Light Treads Aluminum Leg Aluminum Leg Carbon-fiber Leg Carbon-fiber Leg Compact Wheel Armored Huge Wheel Large Storage Unit Advanced Weight Redist. System Improved Signal Interpreter Light Assault Rifle Light Assault Rifle Peak State ------------ > --- POWER ------------ (None) > --- PROPULSION ------- Armored Huge Wheel Armored Huge Wheel > --- UTILITY ---------- Large Storage Unit Sensor Array Hacking Suite > --- WEAPON ----------- Ion Cannon > --- INVENTORY -------- Nuclear Core Light Treads Light Treads Aluminum Leg Aluminum Leg Carbon-fiber Leg Carbon-fiber Leg Compact Wheel Armored Huge Wheel Large Storage Unit Advanced Weight Redist. System Improved Signal Interpreter Light Assault Rifle Light Assault Rifle [Rating: 27] Favorites ----------- Power Light Ion Engine Engine Light Ion Engine Power Core Light Nuclear Core Propulsion Aluminum Leg Treads Light Treads Leg Aluminum Leg Wheel Compact Wheel Utility Large Storage Unit Device Hardlight Generator Storage Large Storage Unit Hackware Hacking Suite Protection Insulated Plating Weapon Light Assault Rifle Energy Gun Beam Rifle Energy Cannon Ion Cannon Ballistic Gun Light Assault Rifle Build | -11 -10 -10 -10 -8 ------- Run | Yrd Mat Min Sub Mat Slots Evolved 4 | . . . . 4 Power . | . . . . . Propulsion 2 | . . . . 2 Utility 2 | . . . . 2 Weapon . | . . . . . Parts Attached 46 | 6 1 6 . 33 Power 6 | 1 . 2 . 3 Engine 3 | 1 . 1 . 1 Core 3 | . . 1 . 2 Reactor . | . . . . . Propulsion 16 | 2 1 . . 13 Treads 3 | 1 . . . 2 Leg 10 | 1 1 . . 8 Wheel 3 | . . . . 3 Hover . | . . . . . Flight . | . . . . . Utility 12 | 1 . 1 . 10 Device 4 | . . . . 4 Storage 3 | 1 . . . 2 Processor . | . . . . . Hackware 1 | . . . . 1 Protection 4 | . . 1 . 3 Artifact . | . . . . . Weapon 12 | 2 . 3 . 7 Energy Gun 4 | 1 . 2 . 1 Energy Cannon 1 | . . . . 1 Ballistic Gun 7 | 1 . 1 . 5 Ballistic Cannon . | . . . . . Launcher . | . . . . . Special Weapon . | . . . . . Impact Weapon . | . . . . . Slashing Weapon . | . . . . . Piercing Weapon . | . . . . . Special Melee Weapon . | . . . . . Unidentified Prototypes . | . . . . . Parts Lost 22 | . . 1 . 21 Power 4 | . . 1 . 3 Propulsion 8 | . . . . 8 Utility 2 | . . . . 2 Weapon 8 | . . . . 8 Highest Loss Streak 6 | . . 1 . 6 To Critical Strikes . | . . . . . Average Backups 10 | 5 6 7 8 11 Power 1 | . 1 1 1 2 Propulsion 4 | 3 4 4 4 4 Utility 1 | . . . 1 2 Weapon 2 | . 1 2 2 2 Tool/Special . | . . . . . Unused Backups 7 | . . . 1 6 Power . | . . . . . Propulsion 2 | . . . . 2 Utility 2 | . . . . 2 Weapon 3 | . . . 1 2 Tool/Special . | . . . . . Average Slot Usage (%) 88 | . 77 90 100 88 Engine 7 | . 14 12 14 6 Core 1 | . . . . 1 Treads 4 | . . . . 5 Leg 25 | . 28 28 28 24 Device 5 | . . . . 6 Storage 10 | . 14 14 14 9 Hackware 4 | . . . . 5 Protection 9 | . . 11 14 10 Energy Gun 3 | . 6 8 14 2 Ballistic Gun 13 | . 14 14 14 13 Peak Build Rating 27 | 5 6 12 12 27 Average Rating 17 | 3 5 10 12 21 On Entrance 6 | . 5 5 12 12 Naked Turns . | . . . . . Heaviest Build 45 | 12 12 17 17 45 Greatest Support 60 | 20 20 20 20 60 Greatest Overweight (x) 2 | 1 . . . 2 Average Overweight (x) . | . . . . . Largest Inventory Capacity 15 | 8 8 8 8 15 Average Capacity 13 | 7 8 8 8 14 Most Carried 15 | 8 7 8 8 15 Average Carried 10 | 5 6 7 7 12 Final Capacity 15 | 8 8 8 8 15 Final Carried 14 | 7 7 8 8 14 Class Distribution -------------------- 68% | Mutant 31% | Scavenger-Mutant Dominant Class ---------------- Mutant | -10/Materials Mutant | -10/Mines Mutant | -10/Subcaves Mutant | -8/Materials Resources | -11 -10 -10 -10 -8 ----------- Run | Yrd Mat Min Sub Mat Matter Collected 825 | 259 . 60 . 506 Remotely . | . . . . . Salvage Created 768 | . . . . 768 Parts 42 | . . . . 42 Haulers Intercepted . | . . . . . Recyclers Shooed 1 | . . . . 1 Parts Field Recycled . | . . . . . Retrieved Matter . | . . . . . Parts Self-Destructed . | . . . . . Prevented . | . . . . . Kills | -11 -10 -10 -10 -8 ------- Run | Yrd Mat Min Sub Mat Combat Hostiles Destroyed 24 | . . . . 24 Guns 23 | . . . . 23 Cannons 1 | . . . . 1 Classes Destroyed 4 | . . . . 4 Swarmer 11 | . . . . 11 Grunt 9 | . . . . 9 Sentry 3 | . . . . 3 Hunter 1 | . . . . 1 Best Kill Streak 5 | . . . . 5 Combat Bots Only 5 | . . . . 5 Max Kills in Single Turn 1 | . . . . 1 Gunslinging . | . . . . . Exploded . | . . . . . Melee . | . . . . . Uniques/NPCs Destroyed . | . . . . . Combat | -11 -10 -10 -10 -8 -------- Run | Yrd Mat Min Sub Mat Hostile Shots Fired 372 | . 32 . 1 339 Missed 98 | . 10 . . 88 Hits 274 | . 22 . 1 251 Projectile 274 | . 22 . 1 251 Critical Strikes 9 | . . . . 9 Actively Blocked 2 | . . . . 2 Damage Taken 3528 | . 205 24 18 3281 Core 614 | . 54 1 . 559 Absorbed by Shields 16 | . . . . 16 Redirected to Shielding 156 | . . . . 156 Core Remaining (%) 89 | 100 . . 78 . Volleys Fired 86 | . . . . 86 Largest 2 | . . . . 2 Hottest 110 | . . . . 110 Shots Fired 171 | . . . . 171 Gun 165 | . . . . 165 Cannon 6 | . . . . 6 Launcher . | . . . . . Special . | . . . . . Kinetic 140 | . . . . 140 Thermal 24 | . . . . 24 Explosive . | . . . . . Electromagnetic 7 | . . . . 7 Robot Hit Streak 16 | . . . . 16 Robot Miss Streak 3 | . . . . 3 Penetration Max . | . . . . . Secondary Targets 4 | . . . . 4 Max Gunslinging Chain 1 | . . . . 1 Shots Hit Robots 116 | . . . . 116 Core Hits 58 | . . . . 58 Critical Kills . | . . . . . Critical Parts Destroyed 1 | . . . . 1 Critical Strikes 1 | . . . . 1 Destroy 1 | . . . . 1 Melee Attacks . | . . . . . Impact . | . . . . . Slashing . | . . . . . Piercing . | . . . . . Sneak Attacks . | . . . . . Combat Hostiles . | . . . . . Follow-up Attacks . | . . . . . Damage Inflicted 1744 | . 8 . . 1736 Guns 1507 | . . . . 1507 Cannons 92 | . . . . 92 Explosions . | . . . . . Melee . | . . . . . Ramming 145 | . 8 . . 137 Kinetic 1265 | . . . . 1265 Thermal 270 | . . . . 270 Explosive . | . . . . . Electromagnetic 64 | . . . . 64 Impact . | . . . . . Slashing . | . . . . . Piercing . | . . . . . Highest Corruption . | . . . . . Average Corruption . | . . . . . Corruption Purged . | . . . . . Corruption Blocked . | . . . . . Overload Shots . | . . . . . Overflow Damage 4 | . . . . 4 Projectiles 4 | . . . . 4 Explosions . | . . . . . Melee . | . . . . . Knockbacks 1 | . . . . 1 Impact 1 | . . . . 1 Kinetic . | . . . . . Secondary . | . . . . . Self-Inflicted Damage . | . . . . . Shots . | . . . . . Rammed 1 | . . . . 1 Targets Rammed 33 | . 4 . . 29 Kicked 32 | . 4 . . 28 Crushed . | . . . . . Highest Temperature 330 | . . . . 330 Average Temperature 118 | . . . . 118 Received Heat Transfer 1125 | . 60 . . 1065 Effects 1 | . . . . 1 Energy Bleed 1 | . . . . 1 Siege Activations . | . . . . . Martial Activations . | . . . . . Shielding Activations . | . . . . . Robots Disrupted . | . . . . . Combat Hostiles . | . . . . . Robots Corrupted . | . . . . . Combat Hostiles . | . . . . . Parts Fried . | . . . . . Impact Corruptions . | . . . . . Robots Melted . | . . . . . Combat Hostiles . | . . . . . Parts Melted 1 | . . . . 1 Heat Transferred 592 | . . . . 592 Parts Sabotaged . | . . . . . Parts Stolen . | . . . . . Parts Stripped . | . . . . . Power Chain Reactions . | . . . . . Alert | -11 -10 -10 -10 -8 ------- Run | Yrd Mat Min Sub Mat Maximum Alert Level . | . . . . . Low Security (%) 100 | 100 100 100 . 100 Level 1 . | . . . . . Level 2 . | . . . . . Level 3 . | . . . . . Level 4 . | . . . . . Level 5 . | . . . . . High Security . | . . . . . Max Security . | . . . . . Peak Influence 181 | . 5 . . 181 Initial . | . . . . . Average 55 | . . . . 72 Influence Increases 714 | . 5 . . 709 Destroy 0b10 Robot/C 480 | . . . . 480 Destroy Leader 100 | . . . . 100 Successful Hack 11 | . 5 . . 6 Destroy Structure 3 | . . . . 3 Lose Combat Pursuer 120 | . . . . 120 Influence Decreases 598 | . 5 . . 593 Time Decay 327 | . 5 . . 322 Lost Part 210 | . . . . 210 Purge Threat 61 | . . . . 61 Squads Dispatched 6 | . 1 . . 5 Investigation 2 | . 1 . . 1 Extermination . | . . . . . Reinforcement 2 | . . . . 2 Assault . | . . . . . Garrison 2 | . . . . 2 Intercept . | . . . . . Searches Triggered . | . . . . . Construction Impeded . | . . . . . Haulers Reinforced . | . . . . . Active Scanning Responses . | . . . . . Cargo Convoy Interrupts . | . . . . . Stealth | -11 -10 -10 -10 -8 --------- Run | Yrd Mat Min Sub Mat Distress Signals 1 | . . . . 1 Communications Jammed . | . . . . . Distress Signals . | . . . . . Times Spotted 59 | . 5 2 1 51 Peak Tracking Total 12 | . 5 2 1 12 Tactical Retreats 4 | . . . . 4 Traps | -11 -10 -10 -10 -8 ------- Run | Yrd Mat Min Sub Mat Traps Triggered 2 | . . 1 . 1 Indirectly . | . . . . . Trap Hack Attempts . | . . . . . Triggered . | . . . . . Disarmed . | . . . . . Reprogrammed . | . . . . . Reused . | . . . . . Traps Extracted . | . . . . . Installed . | . . . . . Triggered . | . . . . . Machines | -11 -10 -10 -10 -8 ---------- Run | Yrd Mat Min Sub Mat Machines Disabled . | . . . . . Max in Single Turn . | . . . . . Machines Repaired . | . . . . . Machines Dismantled . | . . . . . Machines Sabotaged . | . . . . . Overloaded Fab Kills . | . . . . . Hacking | -11 -10 -10 -10 -8 --------- Run | Yrd Mat Min Sub Mat Machines Accessed 4 | . 2 1 . 1 Terminals 2 | . 1 . . 1 Fabricators . | . . . . . Repair Stations . | . . . . . Recycling Units 1 | . 1 . . . Scanalyzers . | . . . . . Garrison Access . | . . . . . Total Hacks 9 | . 4 1 . 4 Successful 5 | . 2 1 . 2 Failed 4 | . 2 . . 2 Catastrophic . | . . . . . Database Lockouts . | . . . . . Manual . | . . . . . Terminals 7 | . 3 . . 4 Fabricators . | . . . . . Repair Stations . | . . . . . Recycling Units 1 | . 1 . . . Scanalyzers . | . . . . . Garrison Access . | . . . . . Terminal Hacks 4 | . 1 1 . 2 Open Door 1 | . . 1 . . Unreport Threat 2 | . . . . 2 Zone Layout 1 | . 1 . . . Fabricator Hacks . | . . . . . Repair Station Hacks . | . . . . . Recycling Unit Hacks 1 | . 1 . . . Retrieve Components 1 | . 1 . . . Scanalyzer . | . . . . . Garrison Access Hacks . | . . . . . Unauthorized Hacks . | . . . . . Terminals . | . . . . . Fabricators . | . . . . . Repair Stations . | . . . . . Recycling Units . | . . . . . Scanalyzers . | . . . . . Garrison Access . | . . . . . Data Cores Recovered . | . . . . . Used . | . . . . . Hacking Detections 3 | . 2 . . 1 Full Trace Events 1 | . 1 . . . Feedback Events . | . . . . . Feedback Blocked . | . . . . . Robot Schematics Acquired . | . . . . . Robots Built . | . . . . . Authchips . | . . . . . Time . | . . . . . Total Robot Build Rating . | . . . . . Part Schematics Acquired . | . . . . . Parts Built . | . . . . . Authchips . | . . . . . Time . | . . . . . Total Part Build Rating . | . . . . . Parts Repaired . | . . . . . Time . | . . . . . Parts Recycled . | . . . . . Recycled Matter . | . . . . . Retrieved Matter . | . . . . . Retrieved Components 1 | . 1 . . . Parts Scanalyzed . | . . . . . Part Schematics Acquired . | . . . . . Parts Damaged . | . . . . . Bothacking | -11 -10 -10 -10 -8 ------------ Run | Yrd Mat Min Sub Mat Used RIF Installer . | . . . . . Robots Hacked . | . . . . . Non-combat . | . . . . . Combat . | . . . . . Robot Hacks Applied . | . . . . . Relay Couplers Released . | . . . . . Fabnet Peak Effective % . | . . . . . Robots Rewired . | . . . . . Allies Hacked . | . . . . . Hacks Repelled . | . . . . . Allies | -11 -10 -10 -10 -8 -------- Run | Yrd Mat Min Sub Mat Total Allies . | . . . . . Largest Group . | . . . . . Highest-Rated Group . | . . . . . Highest-Rated Ally . | . . . . . Total Orders . | . . . . . Ally Attacks . | . . . . . Total Damage . | . . . . . Kills . | . . . . . Allies Corrupted . | . . . . . Allies Melted . | . . . . . Intel | -11 -10 -10 -10 -8 ------- Run | Yrd Mat Min Sub Mat Active Infowar (turns) 198 | . . . . 198 Sensors 91 | . . . . 91 ECM 107 | . . . . 107 Robot Analysis Total . | . . . . . Derelict Logs Recovered . | . . . . . Drone Launches . | . . . . . Drone Recoveries . | . . . . . Exploration | -11 -10 -10 -10 -8 ------------- Run | Yrd Mat Min Sub Mat Turns Passed 1252 | 80 99 108 38 927 Spaces Moved 654 | 45 77 80 31 421 Core 10 | 10 . . . . Treads 78 | 4 . . . 74 Legs 555 | 31 77 80 31 336 Wheels 11 | . . . . 11 Hover . | . . . . . Flight . | . . . . . Fastest Speed 50 | 50 120 120 120 100 Average Speed 127 | 140 120 120 120 128 Slowest Speed 240 | 190 120 120 120 240 Overloaded Moves . | . . . . . Propulsion Burnouts . | . . . . . Robots Hopped . | . . . . . Potential Cave-ins . | . . . . . Cave-ins Triggered . | . . . . . Exploration Rate (%) 17 | 3 14 17 5 46 Regions Visited 4 Branch Regions 2 Pre-discovered Areas . | . . . . . Known Exits Taken . | . . . . . Unknown Exits Taken 4 | 1 1 1 1 . Scrap Searched . | . . . . . Spaces Dug . | . . . . . Terrain Destroyed 2 | . . . . 2 Melee . | . . . . . Projectile 2 | . . . . 2 AOE . | . . . . . Terrain Rammed . | . . . . . Walls Destroyed . | . . . . . Machines Disabled . | . . . . . Actions | -11 -10 -10 -10 -8 --------- Run | Yrd Mat Min Sub Mat Total 907 | 61 83 92 32 639 Wait 22 | . . 1 . 21 Move 650 | 44 76 79 30 421 Hop . | . . . . . Pick Up 46 | 11 1 4 1 29 Fast Attach 7 | 1 . 1 . 5 Attach 31 | 4 1 3 . 23 Detach 4 | . . . . 4 Swap 14 | 1 . 2 . 11 Drop 14 | . 1 2 1 10 Fire 86 | . . . . 86 Melee . | . . . . . Ram . | . . . . . Kick 32 | . 4 . . 28 Crush 1 | . . . . 1 Escape Stasis . | . . . . . Rewire . | . . . . . Trap . | . . . . . Miscellaneous . | . . . . . Route ------- -11/Scrapyard -10/Materials -10/Mines -10/Subcaves -8/Materials History --------- Turn | Location | Event 27 | -11/Scrapyard | Discovered new exit (range 16) 81 | -11/Scrapyard | Entered Materials 82 | -10/Materials | Discovered new exit (range 7) 180 | -10/Materials | Entered Mines 185 | -10/Mines | Met a Derelict who couldn't figure out how to use a Trap Extractor 222 | -10/Mines | Met a Derelict bent on vengeance 229 | -10/Mines | Joined a pair of Derelicts in attacking an 0b10 outpost 279 | -10/Mines | Discovered new exit (range 9) 288 | -10/Mines | Entered Subcaves 309 | -10/Subcaves | Build established: Mutant 314 | -10/Subcaves | Discovered new exit (range 8) 318 | -10/Subcaves | Shifting Twisted Machinery released Battle Rifle 321 | -10/Subcaves | Shifting Twisted Machinery released Mak. Light Armor Plating 326 | -10/Subcaves | Entered Materials 326 | -8/Materials | Evolved 4 slots: Propulsion x2, Utility x2 665 | -8/Materials | Lost 3 parts (2n1w) 855 | -8/Materials | Build established: Scavenger-Mutant 1006 | -8/Materials | Lost 6 parts (1p2n1u2w) 1118 | -8/Materials | Garrison activated, responded to threat 1121 | -8/Materials | Core integrity fell below 50% 1164 | -8/Materials | Lost 6 parts (1p2n1u2w) 1195 | -8/Materials | Core integrity fell below 20% 1231 | -8/Materials | Lost 4 parts (1p2n1w) 1253 | -8/Materials | Destroyed by G-47 Trooper with Particle Gun Last Messages --------------- 01175_ Shock Rifle destroyed. 01175_ R-06 Scavenger collects Flight Unit. 01179_ Kicked G-47 Trooper out of the way. 01180_ R-06 Scavenger collects Flight Unit. 01182_ Kicked Y-45 Defender out of the way. 01186_ Carbon-fiber Leg destroyed. 01188_ Kicked Y-45 Defender. 01192_ Kicked Y-45 Defender out of the way. 01194_ Kicked Y-45 Defender. 01194_ Carbon-fiber Leg destroyed. 01195_ Kicked Y-45 Defender out of the way. 01197_ Kicked Y-45 Defender. 01200_ Lgt. Nuclear Core destroyed. 01201_ Kicked Y-45 Defender out of the way. 01207_ Atomic Centrifuge disabled. 01232_ Acquired Arm. Huge Wheel. 01242_ ALERT: Suspicious intruders detected, dispatching Cutter reinforcements to area. 01249_ Ion Cannon destroyed. 01251_ Critical hit (Burn: +37). Map ----- +----------------------------------------------------+ | ?# " #????????????????????????????? | | ?# #????????????????????????????? | | ?# #????????????????????????????? | | ## #????????????????????????????? | | ## #????????????????????????????? | | #????????????????????????????? | | #????????????????????????????? | | #????????????????????????????? | | ####### #????????????????????????????? | | ######## ###########??????########?????? | | !! #% # """"""" #??????# #?????? | | !! """ # # """"""" #??????# """ #?????? | | ! """ + %+ "%""""" ######## """ #?????? | | """ # #%%"""""" / / "" #?##### | | ] # # %"""""" ######## #? ! # | | ! ?# # % #??????# = # # | | ?# #[ = #??????####"### # | | #####??# #*% #??????# + "# | | ???????# ###########??????# ###### T# | | ???????# # #??????????????# #????? "# | | ???????# ###??????????????# #?????? # | | ???????# #######????????### ###????##### | | ???????# ####### #????????? | | ???????# a #????????? | | ???????/ ""???""" YYT #????????? | | ???????# """? "" @ gg #????????? | | ???????# "????""" ####### g #????????? | | ???????# ?????? ????????### ####?????? | | ???????? ??????????????????# #?????? | | ????????????????????????????# ===]]#?????? | | ????????????????????????????# ==]]#?????? | | ????????????????????????????########?????? | | ?????????????????????????????????????????? | | ?????????????????????????????????????????? | | ?????????????????????????????????????????? | | ?????????????????????????????????????????? | | ?????????????????????????H???????????????? | | ?????????????????????????????????????????? | | ?????????????????????????????????????????? | | ?????????????????????????????????????????? | | ?????????????????????????????????????????? | | ?????????????????????????????????????????? | | ?????????????????????????????????????????? | | ?????????????????????????????????????????? | | ?????????????????????????????????????????? | | ?????????????????????????????????????????? | | ?????????????????????????????????????????? | | ?????????????????????????????????????????? | | ?????????????????????????????????????????? | | ?????????????????????????????????????????? | +----------------------------------------------------+ Best States ------------- Heat Dissipation 31 Energy Generation 14 Energy Capacity 250 Matter Stores 300 Matter Capacity 300 Sight Range 16 Robot Scan Range 14 Terrain Scan Density 10 ECM Strength 1 Additional Mass Support 9 Armor Coverage 375 Resistance: EM 15 Propulsion Shielding 66 Evasion (%) 55 Recoil Reduction 3 Offensive Hacking 10 Item Schematics ----------------- None Robot Schematics ------------------ None Fabricated ------------ Nothing Repaired ---------- Nothing Alien Tech Used ----------------- None Achievements -------------- None Challenges ------------ None Game ------ Seed HugeScrapoidManipulator Manual? 0 Play Time 00:20:25 Cumulative 38.4 hours Start 2025.05.23 @ 16:45:07 End 2025.05.23 @ 17:04:06 Sessions 1 Manual Loads 0 Difficulty Rogue Special Mode None Game No. 81 Rogue 81 Adventurer 0 Explorer 0 Win Type - Total 0 Types 0/0/0/0/0/0/0/0/0/0 Lore% 17 Gallery% 30 Achievement% 26 Wizard Run 0 Options --------- Layout 1 ASCII 0 Keyboard 0 Movement Mouse Keybinds 0 Fullscreen 2 Font 24/Smallcaps Map View 50x35 Zoom Use 0% Tactical HUD 1 Map Filters NONE Filters NONE Steam 1 RUN: c3abf68e-6f7a-42ab-8495-e1f556b4a41a